Workbook

Sheet RSTPAlloc
A1: Jurisdiction or Agency | B1: UPC Number | C1: Project Name | D1: Year of Project Selection | E1: In Current FY 2024-2027 TIP | F1: In Current FY 2026-2031 SYIP | G1: Active Project | H1: FY 2005 (Federal Share) | I1: FY 2005 (State Match) | J1: FY 2006 (Federal Share) | K1: FY 2006 (State Match) | L1: FY 2007 (Federal Share | M1: FY 2007 (State Match) | N1: FY 2008 (Federal Share) | O1: FY 2008 (State Match) | P1: FY 2009 (Federal Share) | Q1: FY 2009 (State Match) | R1: FY 2010 (Federal Share) | S1: FY 2010 (State Match) | T1: FY 2011 (Federal Share) | U1: FY 2011 (State Match) | V1: FY 2012 (Federal Share) | W1: FY 2012 (State Match) | X1: FY 2013 (Federal Share) | Y1: FY 2013 (State Match) | Z1: FY 2014 (Federal Share) | AA1: FY 2014 (State Match) | AB1: FY 2015 (Federal Share) | AC1: FY 2015 (State Match) | AD1: FY 2016 (Federal Share) | AE1: FY 2016 (State Match) | AF1: FY 2017 (Federal Share) | AG1: FY 2017 (State Match) | AH1: FY 2018 (Federal Share) | AI1: FY 2018 (State Match) | AJ1: FY 2019 (Federal Share) | AK1: FY 2019 (State Match) | AL1: FY 2020 (Federal Share) | AM1: FY 2020 (State Match) | AN1: FY 2021 (Federal Share) | AO1: FY 2021 (State Match) | AP1: FY 2022 (Federal Share) | AQ1: FY 2022 (State Match) | AR1: FY 2023 (Federal Share) | AS1: FY 2023 (State Match) | AT1: FY 2024 (Federal Share) | AU1: FY 2024 (State Match) | AV1: FY 2025 (Federal Share) | AW1: FY 2025 (State Match) | AX1: FY 2026 (Federal Share) | AY1: FY 2026 (State Match) | AZ1: FY 2027 (Federal Share) | BA1: FY 2027 (State Match) | BB1: FY 2028 (Federal Share) | BC1: FY 2028 (State Match) | BD1: FY 2029 (Federal Share) | BE1: FY 2029 (State Match) | BF1: FY 2030 (Federal Share) | BG1: FY 2030 (State Match) | BH1: FY 2031 (Federal Share) | BI1: FY 2031 (State Match) | BJ1: FY 2032 (Federal Share) | BK1: FY 2032 (State Match) | BL1: Total RSTP Allocations by Project Row
A2: Chesapeake | B2: 108954 | C2: Study of Light Rail Extension to Chesapeake | D2: 2015 | E2: Yes | F2: Yes | G2: Closing | AP2: 1600000 | AQ2: 400000 | BL2: =SUM(H2:BK2) -> 2000000
A3: Chesapeake | B3: 115423 | C3: George Washington Highway Widening | D3: 2018 | E3: Yes | F3: Yes | G3: Yes | AV3: =1200000+400000-800000 -> 800000 | AW3: =300000+100000-200000 -> 200000 | AX3: =1200000+800000 -> 2000000 | AY3: =300000+200000 -> 500000 | AZ3: =6280000-2704686 -> 3575314 | BA3: =1570000-676171 -> 893829 | BB3: 8600000 | BC3: 2150000 | BL3: =SUM(H3:BK3) -> 18719143
A4: Chesapeake | B4: 123587 | C4: Route 17/460 Intersection Improvement | D4: 2022 | E4: No | F4: Yes | G4: Not yet | BD4: 822752 | BE4: 205688 | BH4: 1104549 | BI4: 276137 | BJ4: 7851322 | BK4: 1962831 | BL4: 12223279
A5: Chesapeake | B5: 123636 | C5: Military Highway near Bainbridge Boulevard Safety Improvement | D5: 2022 | E5: No | F5: Yes | G5: Not yet | BD5: 240000 | BE5: 60000 | BH5: 93600 | BI5: 23400 | BJ5: 1320950 | BK5: 330238 | BL5: 2068188
A6: Chesapeake | B6: 123637 | C6: Centerville Turnpike Widening Study | D6: 2022 | E6: No | F6: Yes | G6: Not yet | BD6: 1301600 | BE6: 325400 | BF6: 1301600 | BG6: 325400 | BL6: 3254000
A7: Chesapeake | B7: 123642 | C7: Pleasant Grove Parkway Alignment Study | D7: 2022 | E7: No | F7: Yes | G7: Not yet | BD7: 1140000 | BE7: 285000 | BF7: 1140000 | BG7: 285000 | BL7: 2850000
A8: District-wide | B8: 105492 | C8: HRTO Strategic Plan | D8: ----- | E8: Yes | F8: Yes | G8: Closing | V8: 320000 | W8: 80000 | BL8: 400000
A9: Franklin and Southampton County | B9: 118380 | C9: Safety Improvements on Route 258 | D9: ----- | E9: Yes | F9: Yes | G9: Closing | AH9: =120000+691546 -> 811546 | AI9: =30000+172887 -> 202887 | AJ9: 811546 | AK9: 202887 | BL9: 2028866
A10: Gloucester County | B10: 110627 | C10: George Washington Highway (Route 17) Widening - Phase 1 | D10: 2016 | E10: Yes | F10: VDOT Fredericksburg SYIP | G10: Yes | AR10: =1760000-800000 -> 960000 | AS10: =440000-200000 -> 240000 | AT10: 6400000 | AU10: =1600000 -> 1600000 | AV10: =7200000-2065715 -> 5134285 | AW10: =1800000-516429 -> 1283571 | AX10: =4788212-213626-1932916 -> 2641670 | AY10: =1197053-53406-483229 -> 660418 | AZ10: =4788212+3618233-875690 -> 7530755 | BA10: =1197053+904558-218922 -> 1882689 | BB10: =3038234-1018700-1438070 -> 581464 | BC10: =759558-254675-359517 -> 145366 | BD10: 3348591 | BE10: 837148 | BH10: =3298041+3240000 -> 6538041 | BI10: =824510+810000 -> 1634510 | BJ10: 3807018 | BK10: 951755 | BL10: 46177281
A11: Gloucester County | B11: 115682 | C11: Ware House Road Bike and Pedestrian Improvements | D11: 2018 | E11: Yes | F11: VDOT Fredericksburg SYIP | G11: Closing | AL11: =214400-136519 -> 77881 | AM11: =53600-34130 -> 19470 | AV11: =214400-214400 -> 0 | AW11: =53600-53600 -> 0 | BL11: 97351
A12: Gloucester County | B12: 119182 | C12: Route 17 Widening - Short Lane (Route 615) to Main Street (Business 17) | D12: 2021 | E12: Yes | F12: VDOT Fredericksburg SYIP | G12: Not yet | AZ12: 200000 | BA12: 50000 | BL12: 250000
A13: Gloucester County | B13: TBD | C13: Gloucester Point Shared Use Path Combined with UPC 110627 | D13: 2022 | E13: No | F13: Yes | G13: Not yet | BD13: =3348591-3348591 -> 0 | BE13: =837148-837148 -> 0 | BL13: 0
A14: Hampton | B14: 97715 | C14: Wythe Creek Road - Widen to 3 Lanes | D14: 2010 | E14: Yes | F14: Yes | G14: Yes | H14: 11752 | I14: 2938 | J14: 301407 | K14: 75352 | N14: 1216562 | O14: 304141 | P14: 253910 | Q14: 63477 | T14: =240000+12367 -> 252367 | U14: =60000+3092 -> 63092 | V14: =1200000+16505 -> 1216505 | W14: =300000+4126 -> 304126 | Z14: =2400000+3360000-4210601-31879+176024 -> 1693544 | AA14: =600000+840000-1052650-7970+44006 -> 423386 | AB14: =4866892-1289858-16012-1013988+4723386+220538 -> 7490958 | AC14: =1216723-322464-4003-253497+1180847+55134 -> 1872740 | AD14: =6653108-3057460-16012-507012 -> 3072624 | AE14: =1663277-764365-4003-126753 -> 768156 | AF14: =3057460+63903-507012 -> 2614351 | AG14: =764365+15976-126753 -> 653588 | AL14: =5471586+2028012 -> 7499598 | AM14: =1367897+507003 -> 1874900 | AN14: =5095147+48944 -> 5144091 | AO14: =1273787+12236 -> 1286023 | AP14: 49775 | AQ14: 12444 | AR14: 734650 | AS14: 183663 | AT14: =739631+3396955 -> 4136586 | AU14: =184908+849239 -> 1034147 | AV14: 4753237 | AW14: 1188309 | AX14: =6591147+381230-1057580 -> 5914797 | AY14: =1647787+95307-264395 -> 1478699 | AZ14: =1120000-709721 -> 410279 | BA14: =280000-177430 -> 102570 | BL14: 58458744
A15: HRT | B15: T135 | C15: Purchase 44 replacement buses | D15: ----- | E15: No | F15: No | G15: Closing | H15: =1600000+528000+836000 -> 2964000 | I15: =400000+132000+209000 -> 741000 | BL15: =SUM(H15:BK15) -> 3705000
A16: HRT | B16: T1824 | C16: Replacement of HRT Southside Bus Facility (in the archived tracking tables, this project was under UPC T1795. There was a UPC T1795, but VDOT stated everything for this project ended up on T1824. | D16: ----- | E16: No | F16: No | G16: Closing | H16: 278180 | I16: 69545 | L16: 1584340 | M16: 396085 | P16: 4897690 | Q16: 1224422 | R16: 1882063 | S16: 470516 | T16: 1440000 | U16: 360000 | BL16: 12602841
A17: HRT | B17: T1821 | C17: Peninsula Rapid Transit (formerly Peninsula LRT Project - Prepare EIS) | D17: ----- | E17: No | F17: No | G17: Closing | H17: =800000+513856 -> 1313856 | I17: =200000+128464 -> 328464 | J17: =2640000-1760000-880000 -> 0 | K17: =660000-440000-220000 -> 0 | L17: =2720000-1520000-1200000 -> 0 | M17: =680000-380000-300000 -> 0 | R17: =1200000-640000 -> 560000 | S17: =300000-160000 -> 140000 | V17: =400000-100000 -> 300000 | W17: =100000-25000 -> 75000 | BL17: 2717320
A18: HRT | B18: T7398 | C18: Construct Satellite Maintenance Facility at NNWI Airport In the archived tracking tables, this project only had NA as a UPC number - per VDOT, project is T7398. | D18: ----- | E18: No | F18: No | G18: Closing | H18: =1200000+1200000 -> 2400000 | I18: =300000+300000 -> 600000 | BL18: 3000000
A19: HRT | B19: T9093 | C19: LRT Extension to Norfolk Naval Station and Virginia Beach Oceanfront (AA/EIS/PE/FD/ROW) Regional Fixed Guideway Studies & ROW | D19: 2010 | E19: Yes | F19: Yes | G19: Closing | T19: 4000000 | U19: 1000000 | V19: =4000000-190559 -> 3809441 | W19: =1000000-47640 -> 952360 | X19: =4000000+190559 -> 4190559 | Y19: =1000000+47640 -> 1047640 | Z19: =5600000-800000 -> 4800000 | AA19: =1400000-200000 -> 1200000 | AB19: =5600000+800000-69354-1600000-1600000-1600000 -> 1530646 | AC19: =1400000+200000-17339-400000-400000-400000 -> 382661 | AP19: 1600000 | AQ19: 400000 | AR19: 4800000 | AS19: 1200000 | BL19: 30913307
A20: HRT | B20: T11778 | C20: Purchase 41 Forty-foot Replacement Buses | D20: 2011 | E20: No - Verify with HRT | F20: No | G20: Yes | V20: 46066 | W20: 11517 | AB20: 1600000 | AC20: 400000 | AH20: 1051431 | AI20: 262858 | AJ20: 439371 | AK20: 109843 | AL20: 193411 | AM20: 48353 | BL20: 4162850
A21: HRT | B21: T14104 | C21: goCommute (formerly TRAFFIX) | D21: 2011 | E21: Yes | F21: Yes | G21: Yes | AN21: 800000 | AO21: 200000 | AP21: 800000 | AQ21: 200000 | AR21: 800000 | AS21: 200000 | AT21: 800000 | AU21: 200000 | AV21: 800000 | AW21: 200000 | AX21: 800000 | AY21: 200000 | AZ21: 800000 | BA21: 200000 | BB21: =800000-218890 -> 581110 | BC21: =200000-54723 -> 145277 | BD21: 800000 | BE21: 200000 | BF21: 800000 | BG21: 200000 | BH21: 800000 | BI21: 200000 | BJ21: 800000 | BK21: 200000 | BL21: 11726387
A22: HRT | B22: T16054 | C22: Bus Vehicle Replacement | D22: 2014/2015 | E22: Yes | F22: Yes | G22: Yes | AN22: 7326836 | AO22: 1831709 | AP22: 1945622 | AQ22: 486405 | AR22: =40000+640000 -> 680000 | AS22: =10000+160000 -> 170000 | AT22: =2382030-2382030+1560000 -> 1560000 | AU22: =595508-595508+390000 -> 390000 | AV22: =4000000+782030-2742150 -> 2039880 | AW22: =1000000+195508-685537 -> 509971 | AX22: =3164061-2363225 -> 800836 | AY22: =791015-590806 -> 200209 | AZ22: 1562319 | BA22: 390580 | BB22: =11261299-640000 -> 10621299 | BC22: =2815325-160000 -> 2655325 | BD22: 7634686 | BE22: 1908671 | BF22: 3669566 | BG22: 917392 | BL22: 47301306
A23: HRT | B23: T17990 | C23: Naval Station Norfolk Transit Extension Study FEIS/PE | D23: 2015 | E23: No - Verify with HRT | F23: Yes | G23: Yes | AP23: 4800000 | AQ23: 1200000 | AX23: 4800000 | AY23: 1200000 | BL23: 12000000
A24: HRT | B24: T19477 | C24: Peninsula BRT | D24: 2016 | E24: No | F24: No | G24: Delayed | AR24: =1636115-1636115 -> 0 | AS24: =409029-409029 -> 0 | AT24: =4763885-4763885 -> 0 | AU24: =1190971-1190971 -> 0 | BH24: 3200000 | BI24: 800000 | BJ24: 2240000 | BK24: 560000 | BL24: 6800000
A25: HRT | B25: T22709 | C25: Victoria Boulevard Facility Upgrades - Phase 2 | D25: 2018 | E25: Yes | F25: Yes | G25: Yes | H25: =389294+590000+501000 -> 1480294 | N25: 510179 | O25: 127545 | V25: 50556 | W25: 12639 | X25: 160000 | Y25: 40000 | AR25: =600777+967560 -> 1568337 | AS25: =150194+241890 -> 392084 | AV25: 2800000 | AW25: 700000 | AX25: =1205183-967560 -> 237623 | AY25: =301296-241890 -> 59406 | AZ25: 2600000 | BA25: 650000 | BL25: 11388663
A26: Isle of Wight County | B26: 103021 | C26: Turner Drive and Route 10/32 Intersection Improvements | D26: 2011 | E26: Yes | F26: No | G26: Closing | V26: 93658 | W26: 23415 | AH26: 240000 | AI26: 60000 | BL26: 417073
A27: Isle of Wight County | B27: 123641 | C27: Route 17 Widening at Smiths Neck Road | D27: 2022 | E27: No | F27: Yes | G27: Not yet | BD27: 947941 | BE27: 236985 | BF27: 654366 | BG27: 163592 | BL27: 2002884
A28: James City County | B28: 17633 | C28: Richmond Road Multi-Use Trail | D28: ----- | E28: Yes | F28: Yes | G28: Closing | H28: =232000+2465+11519 -> 245984 | I28: =58000+616+2880 -> 61496 | V28: =146020-146020 -> 0 | AL28: 618130 | AM28: 154533 | AP28: 116816 | AQ28: 29204 | BL28: 1226163
A29: James City County | B29: 100200 | C29: Skiffes Creek Connector | D29: 2010 | E29: Yes | F29: Yes | G29: Closing | H29: =1464000+3960000+2576000 -> 8000000 | I29: =366000+990000+644000 -> 2000000 | AH29: =8000000-3200000-507012-463636 -> 3829352 | AI29: =2000000-800000-126753-115909 -> 957338 | AJ29: =12000000-6105157-75690 -> 5819153 | AK29: =3000000-1526289-18922 -> 1454789 | AL29: =9305157-1417790 -> 7887367 | AM29: =2326289-354448 -> 1971841 | AN29: =2000492+6020390-1061906 -> 6958976 | AO29: =500123+1505097-265476 -> 1739744 | AP29: =5146758-116816-3395772+3395772-2333856-2696086 -> 0 | AQ29: =1286689-29204-848930+848930-583464-674021 -> 0 | AR29: =1235253+463636-1235253-463636 -> 0 | AS29: =308813+115909-308813-115909 -> 0 | BL29: 40618560
A30: James City County | B30: 100920 | C30: Croaker Road Widening and Multi-Purpose Trail | D30: 2011 | E30: Yes | F30: Yes | G30: Yes | AH30: 400000 | AI30: 100000 | AJ30: =2400000-800000 -> 1600000 | AK30: =600000-200000 -> 400000 | AL30: 800000 | AM30: 200000 | AN30: 1061906 | AO30: 265476 | AP30: =3395772-3395772+2333856 -> 2333856 | AQ30: =848930-848930+583464 -> 583464 | AR30: =6880000+1756369 -> 8636369 | AS30: =1720000+439092 -> 2159092 | AT30: 360000 | AU30: 90000 | AV30: 2504578 | AW30: 626145 | AX30: =1600000+1104721 -> 2704721 | AY30: =400000+276180 -> 676180 | BL30: 25501787
A31: James City County | B31: 102980 | C31: Route 60 Multi-Modal Corridor Upgrade US Route 60 (Pocahontas Trail) Widening and Complete Street | D31: 2011 | E31: Yes | F31: Yes | G31: Yes | AH31: =640000-199394+199394-132000 -> 508000 | AI31: =160000-49848+49848-33000 -> 127000 | AJ31: 1040000 | AK31: 260000 | AP31: 1476547 | AQ31: 369138 | AR31: =1235253-931937+123452 -> 426768 | AS31: =308813-232984+30863 -> 106692 | AT31: 1636116 | AU31: 409029 | AV31: =3260000-2504578+1120000+731235 -> 2606657 | AW31: =815000-626145+280000+182809 -> 651664 | AX31: =1248424-1219870 -> 28554 | AY31: =312106-304967 -> 7139 | AZ31: =1904970+3160000 -> 5064970 | BA31: =476243+790000 -> 1266243 | BB31: =2200000-620467 -> 1579533 | BC31: =550000-155117 -> 394883 | BL31: 17958933
A32: James City County | B32: 111237 | C32: James City County Master Transportation Plan | D32: 2016 | E32: Yes | F32: Yes | G32: Delayed | AR32: 40000 | AS32: 10000 | AT32: =360000-360000 -> 0 | AU32: =90000-90000 -> 0 | BL32: 50000
A33: Newport News | B33: 4483 | C33: Atkinson Boulevard - Construct New Road | D33: 2010 | E33: Yes | F33: No | G33: Closing | H33: =616800+792 -> 617592 | I33: =154200+198 -> 154398 | L33: 982408 | M33: 245602 | T33: =320000-197301-43835-78864 -> 0 | U33: =80000-49325-10959-19716 -> 0 | X33: 764701 | Y33: 191175 | AD33: 8000000 | AE33: 2000000 | AF33: =24964578-8176098-79915 -> 16708565 | AG33: =6241144-2044025-19979 -> 4177140 | AH33: =4800000+2694843+79915 -> 7574758 | AI33: =1200000+673711+19979 -> 1893690 | AJ33: =5481255+1809706-1809706 -> 5481255 | AK33: =1370314+452426-452426 -> 1370314 | AL33: =257872-257872 -> 0 | AM33: =64468-64468 -> 0 | BL33: 50161598
A34: Newport News | B34: 102734 | C34: Amtrak Multimodal Station Development (PE only) | D34: 2010 | E34: Yes | F34: No | G34: Closing | J34: =167749-167749+167749 -> 167749 | K34: =41937-41937+41937 -> 41937 | T34: =800000+29297-829297+829297+197301-1005910+1005910-685680-320230 -> 20688 | U34: =200000+7324-207324+207324+49325-251477+251477-171420-80057 -> 5172 | V34: =800000-800000+602954-602954+602954-602954 -> 0 | W34: =200000-200000+150739-150739+150739-150739 -> 0 | AD34: =506614-506614 -> 0 | AE34: =126654-126654 -> 0 | AF34: =278046+2169930-2447976 -> 0 | AG34: =69511+542483-611994 -> 0 | AH34: =656966-656966 -> 0 | AI34: =164241-164241 -> 0 | BL34: 235546
A35: Newport News | B35: 109075 | C35: Amtrak Multimodal Station - Site Grading and Drainage (child project of UPC 102734) | D35: ----- | E35: Yes | F35: Yes - because of an issue | G35: Closing | H35: =278051+19121+399258-399258+399258 -> 696430 | I35: =69513+4780+99814-99814+77451 -> 151744 | J35: 19035 | K35: 4759 | L35: 61707 | M35: 15427 | T35: 43835 | U35: =10959+22362 -> 33321 | AG35: 1 | AJ35: 1809706 | AK35: 452426 | BL35: 3288391
A36: Newport News | B36: 109076 | C36: Amtrak Multimodal Station - Station, Platform, and Parking Lot (child project of UPC 102734) | D36: ----- | E36: Yes | F36: Yes | G36: Closing | H36: =309527-309527+231475-231475 -> 0 | I36: =77382-77382+57869-57869 -> 0 | J36: =167749-167749 -> 0 | K36: =41937-41937 -> 0 | T36: =829297-829297+78864+1005910-1005910+685680 -> 764544 | U36: =207324-207324+19716+251477-251477+171420 -> 191136 | V36: =800000+602954-602954 -> 800000 | W36: =200000+150739-150739 -> 200000 | AD36: 506614 | AE36: 126654 | AF36: 2447976 | AG36: 611994 | AH36: 656966 | AI36: 164241 | AL36: 257872 | AM36: 64468 | BL36: 6792465
A37: Newport News | B37: 123764 | C37: Birthplace of America Trail (BoAT): Trail 757 - Pocahontas Trail at Green Mountain Parkway to Warwick Boulevard at Falls Reach | D37: 2022 | E37: No | F37: Yes | G37: Not yet | BD37: 1838400 | BE37: 459600 | BF37: 6064000 | BG37: 1516000 | BL37: 9878000
A38: Norfolk | B38: 84243 | C38: Military Highway Widening - Phase I | D38: 2010 | E38: Yes | F38: No | G38: Closing | T38: =800000-800000 -> 0 | U38: =200000-200000 -> 0 | V38: =1600000+800000 -> 2400000 | W38: =400000+200000 -> 600000 | X38: 1600000 | Y38: 400000 | Z38: 2154752 | AA38: 538688 | BL38: 7693440
A39: Norfolk | B39: 107039 | C39: Campostella Bridge Rehabilitation | D39: 2014 | E39: Yes | F39: Yes | G39: Closing | AN39: 4800000 | AO39: 1200000 | BL39: 6000000
A40: Norfolk | B40: 115379 | C40: Newtown Road Corridor Study | D40: 2018 | E40: Yes | F40: Yes | G40: Closing | AV40: 200000 | AW40: 50000 | BL40: 250000
A41: Norfolk | B41: 115424 | C41: Southside Bike Network | D41: 2018 | E41: Yes | F41: Yes | G41: Yes | AV41: 83200 | AW41: 20800 | AX41: 729520 | AY41: 182380 | BL41: 1015900
A42: Norfolk | B42: 119276 | C42: Brambleton Avenue Bridge Rehabilitation | D42: 2020 | E42: Yes | F42: Yes | G42: Yes | AZ42: 2400000 | BA42: 600000 | BB42: 800000 | BC42: 200000 | BL42: 4000000
A43: Norfolk | B43: 123588 | C43: Citywide Fiber Upgrades | D43: 2022 | E43: No | F43: Yes | G43: Not yet | BD43: 184560 | BE43: 46140 | BF43: 1427184 | BG43: 356796 | BH43: 1365680 | BI43: 341420 | BJ43: 1365680 | BK43: 341420 | BL43: 5428880
A44: Norfolk | B44: 123635 | C44: Military Highway at Poplar Hall Drive Shared Use Path | D44: 2022 | E44: No | F44: Yes | G44: Not yet | BD44: 359062 | BE44: 89766 | BF44: 1503704 | BG44: 375926 | BH44: 1653580 | BI44: 413395 | BJ44: 2162518 | BK44: 540630 | BL44: 7098581
A45: Norfolk | B45: 123638 | C45: Downtown Norfolk/Market Street/St. Paul's Comprehensive Study | D45: 2022 | E45: No | F45: Yes | G45: Not yet | BD45: 1000000 | BE45: 250000 | BF45: 1000000 | BG45: 250000 | BL45: 2500000
A46: Poquoson | B46: 13427 | C46: Wythe Creek Road Widening - Phase I | D46: 2010 | E46: Yes | F46: Yes | G46: Yes | H46: =204800+117600+702400+702400 -> 1727200 | I46: =51200+29400+175600+175600 -> 431800 | L46: 800000 | M46: 200000 | N46: 800000 | O46: 200000 | T46: 160000 | U46: 40000 | V46: 320000 | W46: 80000 | X46: 1316680 | Y46: 329170 | Z46: 1166630 | AA46: 291658 | AB46: =6636690-1836690-4723386 -> 76614 | AC46: =1659172-459172-1180847 -> 19153 | AF46: 1836690 | AG46: 459172 | AN46: 496000 | AO46: 124000 | AT46: 1183045 | AU46: 295761 | AV46: 686763 | AW46: 171691 | AX46: =686763+1057580 -> 1744343 | AY46: =171691+264395 -> 436086 | BL46: 15392456
A47: Port of Virginia | B47: 109409 | C47: Port of Virginia ITS Master Plan for Hampton Roads | D47: 2015 | E47: Yes | F47: Yes | G47: Closing | H47: =160000-160000+8777+32207+6286+32605+79658 -> 159533 | I47: =40000-40000+1585+8052+1571+8151+19914 -> 39273 | V47: =467 -> 467 | AF47: 610 | AP47: =150000-131814 -> 18186 | BL47: 218069
A48: Portsmouth | B48: 107035 | C48: George Washington Highway Corridor Improvements, including Elm Street Intersection | D48: 2014 | E48: Yes | F48: Yes | G48: Yes | AN48: 440000 | AO48: 110000 | AR48: 1200000 | AS48: 300000 | AT48: =3120000-1267387 -> 1852613 | AU48: =780000-316847 -> 463153 | AX48: 827387 | AY48: 206847 | BL48: 5400000
A49: Suffolk | B49: 69050 | C49: Bridge Road/Shoulders Hill Road Intersection Improvements | D49: 2018 | E49: Yes | F49: Yes | G49: Yes | AV49: =3600000-176607-731235-1201258-782030 -> 708870 | AW49: =900000-44152-182809-300315-195508 -> 177216 | AX49: =3260000-800000-827387-1104721-381230 -> 146662 | AY49: =815000-200000-206847-276180-95307 -> 36666 | BL49: 1069414
A50: Suffolk | B50: 102994 | C50: Intelligent Transportation Systems (ITS) Upgrades | D50: 2011 | E50: Yes | F50: Yes | G50: Closing | H50: =293847-293487+293487 -> 293847 | I50: =73462-73462+73462 -> 73462 | AH50: =108000+199394-199394+132000 -> 240000 | AI50: =27000+49848-49848+33000 -> 60000 | AJ50: =1212000-201038-56000 -> 954962 | AK50: =303000-50260-14000 -> 238740 | AN50: =124000-124000 -> 0 | AO50: =31000-31000 -> 0 | BL50: 1861011
A51: Suffolk | B51: 107057 | C51: West End Suffolk Bypass Interchange IMR study | D51: 2014 | E51: Yes | F51: No | G51: Closing | AN51: =160000-124000-949 -> 35051 | AO51: =40000-31000-237 -> 8763 | BL51: 43814
A52: Suffolk | B52: 108984 | C52: Speights Spillway Bridge Replacement | D52: 2015 | E52: Yes | F52: Yes | G52: Yes | AJ52: 201038 | AK52: 50260 | AN52: 124000 | AO52: 31000 | AP52: 1080000 | AQ52: 270000 | BL52: 1756298
A53: Suffolk | B53: 111036 | C53: Suffolk Bypass / Godwin Boulevard - Wilroy Road - Pruden Boulevard IMR | D53: 2016 | E53: Yes | F53: Yes | G53: Yes | AJ53: 56000 | AK53: 14000 | AN53: 949 | AO53: 237 | AR53: =40000-40000 -> 0 | AS53: =10000-10000 -> 0 | AT53: =1560000-1560000 -> 0 | AU53: =390000-390000 -> 0 | BL53: 71186
A54: Suffolk Transit | B54: 115421 | C54: Suffolk Transit Operations Facility | D54: 2018 | E54: Yes | F54: Yes | G54: Yes | AV54: 48000 | AW54: 12000 | AX54: 1464053 | AY54: 366013 | BL54: 1890066
A55: Suffolk | B55: 123765 | C55: Citywide Traffic Signal System Timing | D55: 2022 | E55: No | F55: Yes | G55: Not yet | BD55: 392000 | BE55: 98000 | BF55: 260000 | BG55: 65000 | BH55: 76000 | BI55: 19000 | BL55: 910000
A56: Virginia Beach | B56: 15828 | C56: Elbow Road - Phase II-B | D56: 2015 | E56: Yes | F56: Yes | G56: Yes | H56: =74+121474+380445+541002 -> 1042995 | I56: =19+30369+95111+135251 -> 260750 | J56: 701561 | K56: 175390 | L56: =668090-668090+668090 -> 668090 | M56: =167022-167022+153497 -> 153497 | N56: 9251 | O56: 2313 | P56: 604591 | Q56: 151148 | R56: 183926 | S56: 45982 | T56: 3767 | U56: 942 | V56: =377698+400000-400000+5061+252056-252056+240000+26 -> 622785 | W56: =94424+100000-100000+1265+63014-63014+60000+6 -> 155695 | AF56: =173750-173750+185059 -> 185059 | AG56: =43437-43437+45654 -> 45654 | AJ56: 3033246 | AK56: 758312 | AL56: =5485943+212101 -> 5698044 | AM56: =1371486+53025 -> 1424511 | AP56: =10890236-10890236+1858400 -> 1858400 | AQ56: =2722559-2722559+464600 -> 464600 | AR56: =8977074-8577074-400000+1901600+88323 -> 1989923 | AS56: =2244268-2144268-100000+475400+22081 -> 497481 | AT56: =7265386-7265386+1305380 -> 1305380 | AU56: =1816346-1816346+326345 -> 326345 | BL56: 22369638
A57: Virginia Beach | B57: 17630 | C57: Witchduck Road/I-264 Interchange Improvement - PE and RW Only | D57: ----- | E57: Yes | F57: Yes | G57: Closing | H57: =400000+320000+200000+20000+80000+200000+400000+272000 -> 1892000 | I57: =100000+80000+50000+5000+20000+50000+100000+68000 -> 473000 | BL57: 2365000
A58: Virginia Beach | B58: 103004 | C58: Regional Signal Preemption Program | D58: 2011 | E58: Yes | F58: Yes | G58: Closing | AH58: 106400 | AI58: 26600 | BL58: 133000
A59: Virginia Beach | B59: 103005 | C59: Centerville Turnpike Widening from Kempsville Road to Indian River Road | D59: 2011 | E59: Yes | F59: Yes | G59: Yes | AH59: =5698746-2498746-95927-7726 -> 3096347 | AI59: =1424687-624687-23982-1932 -> 774086 | AJ59: =4701254-800000-16012 -> 3885242 | AK59: =1175313-200000-4003 -> 971310 | AL59: 3410686 | AM59: 852671 | AP59: =1520000-1520000 -> 0 | AQ59: =380000-380000 -> 0 | AR59: 28555 | AS59: 7139 | AT59: =7265386+1680000+2167523+1940712 -> 13053621 | AU59: =1816346+420000+541881+485178 -> 3263405 | AV59: =4000000+1600000-2196078+421855 -> 3825777 | AW59: =1000000+400000-549020+105464 -> 956444 | BL59: 34125283
A60: Virginia Beach | B60: 107064 | C60: Bus Stop Infrastructure and Accessibility Improvements - Phase 9 | D60: 2014 | E60: Yes | F60: Yes | G60: Yes | AN60: 319175 | AO60: 79794 | BL60: 398969
A61: Virginia Beach | B61: 112317 | C61: Elbow Road Extended - Phase II-C (child project of UPC 15828) | D61: N/A child project | E61: Yes | F61: Yes | G61: Yes | V61: 400000 | W61: 100000 | AP61: =10890236-800000+1200000 -> 11290236 | AQ61: =2722559-200000+300000 -> 2822559 | AR61: =8577074-2349670+1200000 -> 7427404 | AS61: =2144268-587417+300000 -> 1856851 | AV61: 1201258 | AW61: 300315 | BL61: 25398623
A62: Virginia Beach | B62: 112318 | C62: Elbow Road Extended - Phase II-D (child project of UPC 15828) | D62: N/A child project | E62: Yes | F62: Yes | G62: Yes | AR62: 400000 | AS62: 100000 | AT62: =7265386-7265386 -> 0 | AU62: =1816346-1816346 -> 0 | AV62: =4000000-4000000 -> 0 | AW62: =1000000-1000000 -> 0 | AX62: =2400000-1248424 -> 1151576 | AY62: =600000-312106 -> 287894 | BL62: 1939470
A63: Virginia Beach | B63: 115543 | C63: Nimmo Parkway - Phase VIIB | D63: 2020 | E63: Yes | F63: Yes | G63: Yes | AV63: =400000-400000 -> 0 | AW63: =100000-100000 -> 0 | AX63: =4000000-800000 -> 3200000 | AY63: =1000000-200000 -> 800000 | AZ63: =4000000-1807596 -> 2192404 | BA63: =1000000-451899 -> 548101 | BB63: 3600000 | BC63: 900000 | BH63: 2207596 | BI63: 551899 | BL63: 14000000
A64: Virginia Beach | B64: 119275 | C64: Laskin Road Phase III | D64: 2020 | E64: Yes | F64: Yes | G64: Not yet | AZ64: =2935200-353480 -> 2581720 | BA64: =733800-88370 -> 645430 | BB64: 3521511 | BC64: 880378 | BD64: 3972572 | BE64: 993143 | BF64: 7386620 | BG64: 1846655 | BH64: =7386620+353480 -> 7740100 | BI64: =1846655+88370 -> 1935025 | BL64: 31503154
A65: Virginia Beach | B65: 123585 | C65: Laskin Road Phase I-B | D65: 2022 | E65: No | F65: Yes | G65: Not yet | BD65: 1914288 | BE65: 478572 | BF65: 4455770 | BG65: 1113942 | BH65: 3240000 | BI65: 810000 | BJ65: 8950153 | BK65: 2237538 | BL65: 23200263
A66: WATA | B66: 115425 | C66: Strategic Plan and Comprehensive Operating Analysis Study | D66: 2018 | E66: Yes | F66: Yes | G66: Yes | AV66: 240000 | AW66: 60000 | BL66: 300000
A67: WATA | B67: 119278 | C67: Transit Strategic Plan Major Update | D67: 2020 | E67: Yes | F67: Yes | G67: Not yet | AZ67: =288000-288000 -> 0 | BA67: =72000-72000 -> 0 | BL67: =SUM(H67:BK67) -> 0
A68: WATA | B68: T1818 | C68: Bus on Chassis Vehicles - 5 New Replacement Vehicles | D68: ----- | E68: No | F68: No | G68: Closing | H68: 156000 | I68: 39000 | J68: 104444 | K68: 26000 | BL68: =SUM(H68:BK68) -> 325444
A69: WATA | B69: T11932 | C69: WATA Administration and Operations Facility - Phase 1 | D69: 2011 | E69: Yes | F69: Yes | G69: Yes | H69: =54100+400000 -> 454100 | I69: =13525+100000 -> 113525 | P69: 3892 | Q69: 973 | T69: 63227 | U69: 15807 | AB69: 69354 | AC69: 17339 | AF69: 366601 | AG69: 91650 | AH69: =2960000+856059 -> 3816059 | AI69: =740000+214015 -> 954015 | AJ69: =4240000-1840000+288206 -> 2688206 | AK69: =1060000-460000+72052 -> 672052 | AL69: =1840000+136519 -> 1976519 | AM69: =460000+34130 -> 494130 | AP69: 107036 | AQ69: 24447 | AR69: 931937 | AS69: 232984 | BL69: =SUM(H69:BK69) -> 13093853
A70: York County | B70: 16314 | C70: Penniman Road/Government Road Improvements | D70: 2018 | E70: Yes | F70: Yes | G70: Yes | H70: =266471+502400 -> 768871 | I70: =66618+125600 -> 192218 | AR70: 1261232 | AS70: 315308 | AV70: 1 | AW70: 0 | BL70: =SUM(H70:BK70) -> 2537630
A71: York County | B71: 111787 | C71: George Washington Memorial Highway (Route 17) Widening | D71: 2020 | E71: Yes | F71: Yes | G71: Yes | AZ71: 1200000 | BA71: 300000 | BB71: 840000 | BC71: 210000 | BD71: 3752000 | BE71: 938000 | BL71: 7240000
A72: York County | B72: 119279 | C72: York County Roadway Needs Assessment | D72: 2020 | E72: Yes | F72: Yes | G72: Not yet | AZ72: 240000 | BA72: 60000 | BB72: 240000 | BC72: 60000 | BL72: 600000
A74: HRTPO RSTP Reserve Account | B74: 70715 | C74: HRTPO RSTP Reserve Account (VDOT's Balance Entry) | H74: =541002-541002 -> 0 | I74: =135251-135251 -> 0 | J74: 0 | K74: 0 | L74: 0 | M74: 0 | N74: 0 | O74: 0 | P74: 0 | Q74: 0 | R74: 0 | S74: 0 | T74: 0 | U74: 0 | V74: =26-26 -> 0 | W74: =6-6 -> 0 | X74: 0 | Y74: 0 | Z74: 0 | AA74: 0 | AB74: 0 | AC74: 0 | AD74: 0 | AE74: 0 | AF74: 0 | AG74: 0 | AH74: 0 | AI74: 0 | AJ74: 0 | AK74: 0 | AL74: =212101-212101+136519-136519 -> 0 | AM74: =53025-53025+34130-34130 -> 0 | AN74: 0 | AO74: 0 | AP74: =1476548-1476548+107036-107036 -> 0 | AQ74: =369137-369137+24447-24447 -> 0 | AR74: =211775-123452+1636115-640000-967560-28555-88323 -> 0 | AS74: =52944-30863+409029-160000-241890-7139-22081 -> 0 | AT74: =807760+4763885-2167523-1305380-158030-1940712 -> 0 | AU74: =201940+1190971-541881-326345-39507-485178 -> 0 | AV74: =421855-421855 -> 0 | AW74: =105464-105464 -> 0 | AX74: =230470-230470 -> 0 | AY74: =57617-57617 -> 0 | AZ74: =748780-748780 -> 0 | BA74: =187195-187195 -> 0 | BB74: =218890-218890 -> 0 | BC74: =54723-54723 -> 0 | BD74: =6974454-3348591-1690100 -> 1935763 | BE74: =1743614-837148-422525 -> 483941 | BF74: =4276988-1723902 -> 2553086 | BG74: =1069247-430975 -> 638272 | BH74: =4841071 -> 4841071 | BI74: =1210268 -> 1210268 | BJ74: 1165168 | BK74: 291292 | BL74: =SUM(H74:BK74) -> 13118861
A76: Total RSTP Allocated to Projects by FY Column | H76: =SUM(H2:H72) -> 24502634 | I76: 5732613 | J76: 1294196 | K76: 323438 | L76: 4096545 | M76: 1010611 | N76: 2535992 | O76: 633999 | P76: 5760083 | Q76: 1440020 | R76: 2625989 | S76: 656498 | T76: 6748428 | U76: 1709470 | V76: 10379478 | W76: 2594752 | X76: 8031940 | Y76: 2007985 | Z76: 9814926 | AA76: 2453732 | AB76: 10767572 | AC76: 2691893 | AD76: 11579238 | AE76: 2894810 | AF76: 24159852 | AG76: 6039199 | AH76: 22330859 | AI76: 5582715 | AJ76: 27819725 | AK76: 6954933 | AL76: 28419508 | AM76: 7104877 | AN76: =SUM(AN2:AN72) -> 27506984 | AO76: 6876746 | AP76: 29076474 | AQ76: 7262261 | AR76: 31885175 | AS76: 7971294 | AT76: 32287361 | AU76: 8071840 | AV76: 28432506 | AW76: 7108126 | AX76: 29191742 | AY76: 7297937 | AZ76: 30357761 | BA76: 7589442 | BB76: 30964917 | BC76: 7741229 | BD76: 29648452 | BE76: 7412113 | BF76: 29662810 | BG76: 7415703 | BH76: 28019146 | BI76: 7004786 | BJ76: 28497641 | BK76: 7124412
